fUST/lending_fUST_20250821
["ID","MTS","AMOUNT","RATE_DAILY","PERIOD"]
[380446048,1755773448437,-3466.17,0.00021917,3]
[380446050,1755773448446,-3466.17,0.00021917,3]
[380446052,1755773448455,-3466.17,0.00021917,3]
[380446054,1755773448464,-3466.17,0.00021917,3]
[380446056,1755773448473,-3466.17,0.00021917,3]
[380446058,1755773448482,-3466.17,0.00021917,3]
[380446060,1755773448491,-3466.17,0.00021917,3]
[380446062,1755773448500,-3466.17,0.00021917,3]
[380446064,1755773448510,-151.0,0.00021917,2]
[380446066,1755773448519,-3466.17,0.00021917,3]
[380446068,1755773448528,-3466.17,0.00021917,3]
[380446070,1755773448537,-151.0,0.00021917,2]
[380446072,1755773448547,-3466.17,0.00021917,3]
[380446074,1755773448556,-154.605763,0.00021917,2]
[380446076,1755773448565,-3466.17,0.00021917,3]
[380446078,1755773448575,-3466.17,0.00021917,3]
[380446080,1755773448584,-3466.17,0.00021917,3]
[380446082,1755773448594,-3466.17,0.00021917,3]
[380446084,1755773448603,-480.0,0.00021917,3]
[380446086,1755773448612,-3466.17,0.00021917,3]
[380446089,1755773448623,-480.0,0.00021917,3]
[380446091,1755773448632,-3466.17,0.00021917,3]
[380446093,1755773448641,-1513.21,0.00021917,3]
[380446095,1755773448650,-3466.33434548,0.00021917,3]
[380446097,1755773448660,-480.0,0.00021917,3]
[380446099,1755773448668,-151.0,0.00021917,2]
[380446101,1755773448678,-480.0,0.00021917,3]
[380446103,1755773448689,-480.0,0.00021917,3]
[380446105,1755773448699,-480.0,0.00021917,3]
[380446106,1755773448709,-480.0,0.00021917,3]
[380446108,1755773448718,-2869.64,0.00021917,3]
[380446111,1755773448728,-692.06,0.00021917,3]
[380446113,1755773448737,-480.0,0.00021917,3]
[380446115,1755773448747,-480.0,0.00021917,3]
[380446117,1755773448756,-1219.4,0.00021917,3]
[380446119,1755773448766,-2205.83,0.00021917,3]
[380446121,1755773448775,-480.0,0.00021917,3]
[380446122,1755773448784,-480.0,0.00021917,3]
[380446125,1755773448794,-190.727603,0.00021917,2]
[380446126,1755773448804,-546.14,0.00021917,3]
[380446128,1755773448813,-190.727603,0.00021917,2]
[380446130,1755773448824,-190.727603,0.00021917,2]
[380446133,1755773448834,-190.727603,0.00021917,2]
[380446135,1755773448843,-480.0,0.00021917,3]
[380446136,1755773448852,-190.727603,0.00021917,2]
[380446138,1755773448862,-480.0,0.00021917,3]
[380446141,1755773448871,-190.727603,0.00021917,2]
[380446143,1755773448881,-190.727603,0.00021917,2]
[380446144,1755773448890,-480.0,0.00021917,3]
[380446146,1755773448899,-190.727603,0.00021917,2]
[380446148,1755773448908,-190.727603,0.00021917,2]
[380446150,1755773448917,-480.0,0.00021917,3]
[380446152,1755773448926,-190.727603,0.00021917,2]
[380446154,1755773448935,-190.727603,0.00021917,2]
[380446156,1755773448947,-421.17699073,0.00021917,3]
[380446158,1755773448956,-190.727603,0.00021917,2]
[380446160,1755773448965,-190.727603,0.00021917,2]
[380446162,1755773448975,-190.727603,0.00021917,2]
[380446164,1755773448985,-480.0,0.00021917,3]
[380446166,1755773448994,-190.727603,0.00021917,2]
[380446168,1755773449003,-480.0,0.00021917,3]
[380446170,1755773449012,-190.727603,0.00021917,2]
[380446172,1755773449021,-610.3663399,0.00021917,3]
[380446174,1755773449030,-480.0,0.00021917,3]
[380446176,1755773449039,-190.727603,0.00021917,2]
[380446178,1755773449052,-480.0,0.00021917,3]
[380446180,1755773449061,-190.727603,0.00021917,2]
[380446182,1755773449071,-480.0,0.00021917,3]
[380446184,1755773449081,-190.727603,0.00021917,2]
[380446186,1755773449090,-190.727594,0.00021917,2]
[380446188,1755773449100,-480.0,0.00021917,3]
[380446190,1755773449109,-7915.22,0.00021917,3]
[380446192,1755773449120,-225.46466791,0.00021917,3]
[380446194,1755773449129,-480.0,0.00021917,3]
[380446196,1755773449139,-151.0,0.00021917,2]
[380446198,1755773449148,-690.45,0.00021917,3]
[380446200,1755773449157,-746.97,0.00021917,3]
[380446202,1755773449167,-1777.69,0.00021917,3]
[380446204,1755773449176,-480.0,0.00021917,3]
[380446206,1755773449186,-513.26,0.00021917,3]
[380446208,1755773449196,-151.0,0.00021917,2]
[380446210,1755773449205,-480.0,0.00021917,3]
[380446212,1755773449215,-480.0,0.00021917,3]
[380446214,1755773449224,-389.28730653,0.00021917,3]
[380446216,1755773449233,-480.0,0.00021917,3]
[380446218,1755773449243,-483.4366319,0.00021917,3]
[380446220,1755773449252,-3657.29,0.00021917,3]
[380446222,1755773449262,-1022.11931785,0.00021917,3]
[380446256,1755773449746,-0.79068215,0.00021917,3]
[380446257,1755773449765,-480.0,0.00021917,3]
[380446258,1755773449774,-1034.76,0.00021917,3]
[380446259,1755773449783,-480.0,0.00021917,3]
[380446261,1755773449792,-480.0,0.00021917,3]
[380446263,1755773449801,-1509.51,0.00021917,3]
[380446265,1755773449810,-565.3,0.00021917,3]
[380446267,1755773449820,-957.27,0.00021917,3]
[380446269,1755773449829,-151.0,0.00021917,2]
[380446271,1755773449838,-151.0,0.00021917,2]
[380446273,1755773449847,-542.22,0.00021917,3]
[380446275,1755773449856,-481.47070429,0.00021917,3]
[380446277,1755773449865,-151.0,0.00021917,2]
[380446279,1755773449874,-151.0,0.00021917,2]
[380446281,1755773449883,-151.0,0.00021917,2]
[380446283,1755773449894,-151.0,0.00021917,2]
[380446285,1755773449903,-151.0,0.00021917,2]
[380446287,1755773449912,-480.0,0.00021917,3]
[380446289,1755773449921,-1180.91,0.00021917,3]
[380446291,1755773449930,-1797.43,0.00021917,3]
[380446293,1755773449939,-151.0,0.00021917,2]
[380446295,1755773449948,-480.0,0.00021917,3]
[380446297,1755773449958,-151.0,0.00021917,2]
[380446299,1755773449967,-480.0,0.00021917,3]
[380446301,1755773449976,-151.0,0.00021917,2]
[380446303,1755773449985,-480.0,0.00021917,3]
[380446305,1755773449995,-151.0,0.00021917,2]
[380446307,1755773450003,-480.0,0.00021917,3]
[380446309,1755773450013,-480.0,0.00021917,3]
[380446311,1755773450022,-480.0,0.00021917,3]
[380446313,1755773450031,-1409.77,0.00021917,3]
[380446315,1755773450042,-480.0,0.00021917,3]
[380446317,1755773450051,-480.0,0.00021917,3]
[380446319,1755773450060,-500.98,0.00021917,3]
[380446321,1755773450070,-480.0,0.00021917,3]
[380446323,1755773450079,-2358.79,0.00021917,3]
[380446325,1755773450088,-151.0,0.00021917,2]
[380446327,1755773450097,-480.0,0.00021917,3]
[380446329,1755773450108,-151.0,0.00021917,2]
[380446331,1755773450116,-151.0,0.00021917,2]
[380446333,1755773450125,-480.0,0.00021917,3]
[380446335,1755773450135,-1093.26,0.00021917,3]
[380446337,1755773450144,-480.0,0.00021917,3]
[380446339,1755773450153,-151.984148,0.00021917,2]
[380446341,1755773450163,-151.984148,0.00021917,2]
[380446343,1755773450172,-151.984148,0.00021917,2]
[380446345,1755773450181,-151.0,0.00021917,2]
[380446347,1755773450192,-151.984148,0.00021917,2]
[380446349,1755773450201,-151.833911,0.00021917,2]
[380446351,1755773450210,-151.984148,0.00021917,2]
[380446353,1755773450219,-480.0,0.00021917,3]
[380446355,1755773450229,-151.984148,0.00021917,2]
[380446357,1755773450238,-151.984148,0.00021917,2]
[380446359,1755773450247,-151.984148,0.00021917,2]
[380446361,1755773450256,-151.984148,0.00021917,2]
[380446363,1755773450265,-151.984148,0.00021917,2]
[380446365,1755773450275,-480.0,0.00021917,3]
[380446367,1755773450284,-151.984148,0.00021917,2]
[380446369,1755773450293,-151.984148,0.00021917,2]
[380446370,1755773450302,-151.984148,0.00021917,2]
[380446372,1755773450311,-151.984148,0.00021917,2]
[380446374,1755773450320,-151.984148,0.00021917,2]
[380446376,1755773450329,-151.984148,0.00021917,2]
[380446378,1755773450338,-151.984148,0.00021917,2]
[380446380,1755773450347,-151.984148,0.00021917,2]
[380446382,1755773450357,-480.0,0.00021917,3]
[380446385,1755773450366,-2035.61,0.00021917,3]
[380446387,1755773450375,-151.984148,0.00021917,2]
[380446388,1755773450385,-5617.3,0.00021917,3]
[380446390,1755773450394,-151.984138,0.00021917,2]
[380446392,1755773450403,-480.0,0.00021917,3]
[380446394,1755773450412,-480.0,0.00021917,3]
[380446396,1755773450422,-713.5,0.00021917,3]
[380446399,1755773450432,-976.24,0.00021917,3]
[380446400,1755773450441,-4574.93,0.00021917,3]
[380446403,1755773450451,-480.0,0.00021917,3]
[380446405,1755773450460,-151.0,0.00021917,2]
[380446406,1755773450469,-151.0,0.00021917,2]
[380446408,1755773450478,-151.0,0.00021917,2]
[380446410,1755773450487,-13332.46,0.00021917,3]
[380446412,1755773450497,-1328.06,0.00021917,3]
[380446432,1755773450671,-255.847081,0.00021917,2]
[380446435,1755773450681,-151.0,0.00021917,2]
[380446436,1755773450690,-151.0,0.00021917,2]
[380446438,1755773450700,-237.29349339,0.00021917,3]
[380446440,1755773450709,-151.0,0.00021917,2]
[380446442,1755773450719,-151.0,0.00021917,2]
[380446444,1755773450728,-480.0,0.00021917,3]
[380446447,1755773450738,-301.606628,0.00021917,2]
[380446448,1755773450747,-480.0,0.00021917,3]
[380446450,1755773450756,-1564.5,0.00021917,3]
[380446452,1755773450766,-604.38,0.00021917,3]
[380446454,1755773450775,-575.43,0.00021917,3]
[380446456,1755773450785,-1000.0,0.00021917,3]
[380446458,1755773450794,-544.4,0.00021917,3]
[380446460,1755773450803,-480.0,0.00021917,3]
[380446462,1755773450812,-1428.49,0.00021917,3]
[380446464,1755773450821,-480.0,0.00021917,3]
[380446466,1755773450830,-480.0,0.00021917,3]
[380446468,1755773450839,-218.06075176,0.00021917,3]
[380446470,1755773450848,-727.49,0.00021917,3]
[380446472,1755773450857,-5261.7,0.00021917,3]
[380446474,1755773450866,-494.21,0.00021917,3]
[380446476,1755773450875,-598.47,0.00021917,3]
[380446478,1755773450884,-480.0,0.00021917,3]
[380446480,1755773450893,-480.2942819,0.00021917,3]
[380446482,1755773450902,-480.0,0.00021917,3]
[380446484,1755773450911,-480.0,0.00021917,3]
[380446486,1755773450921,-480.0,0.00021917,3]
[380446488,1755773450930,-1655.37,0.00021917,3]
[380446490,1755773450941,-480.0,0.00021917,3]
[380446492,1755773450949,-609.53,0.00021917,3]
[380446494,1755773450959,-538.17,0.00021917,3]
[380446496,1755773450968,-712.4,0.00021917,3]
[380446498,1755773450977,-1158.72,0.00021917,3]
[380446500,1755773450986,-929.23,0.00021917,3]
[380446502,1755773450995,-480.0,0.00021917,3]
[380446504,1755773451004,-480.0,0.00021917,3]
[380446506,1755773451013,-285.11737909,0.00021917,3]
[380446508,1755773451022,-642.05,0.00021917,3]
[380446510,1755773451031,-480.0,0.00021917,3]
[380446512,1755773451041,-480.0,0.00021917,3]
[380446514,1755773451055,-4119.41,0.00021917,3]
[380446516,1755773451064,-480.0,0.00021917,3]
[380446518,1755773451073,-914.14,0.00021917,3]
[380446520,1755773451082,-480.0,0.00021917,3]
[380446522,1755773451092,-1568.66,0.00021917,3]
[380446524,1755773451101,-480.0,0.00021917,3]
[380446526,1755773451110,-480.0,0.00021917,3]
[380446528,1755773451119,-480.0,0.00021917,3]
[380446530,1755773451128,-480.0,0.00021917,3]
[380446532,1755773451138,-151.0,0.00021917,2]
[380446534,1755773451149,-151.0,0.00021917,2]
[380446536,1755773451159,-151.0,0.00021917,2]
[380446538,1755773451170,-151.0,0.00021917,2]
[380446540,1755773451181,-151.0,0.00021917,2]
[380446542,1755773451190,-151.0,0.00021917,2]
[380446544,1755773451200,-151.0,0.00021917,2]
[380446546,1755773451210,-151.0,0.00021917,2]
[380446548,1755773451220,-151.0,0.00021917,2]
[380446550,1755773451230,-151.0,0.00021917,2]
[380446552,1755773451239,-1726.12,0.00021917,3]
[380446554,1755773451249,-151.0,0.00021917,2]
[380446556,1755773451258,-151.0,0.00021917,2]
[380446558,1755773451267,-2179.25,0.00021917,2]
[380446559,1755773451277,-151.0,0.00021917,2]
[380446561,1755773451286,-1613.52,0.00021917,3]
[380446563,1755773451295,-324.31655955,0.00021917,3]
[380446565,1755773451305,-151.0,0.00021917,2]
[380446567,1755773451314,-151.0,0.00021917,2]
[380446569,1755773451323,-151.0,0.00021917,2]
[380446571,1755773451332,-151.0,0.00021917,2]
[380446573,1755773451342,-403.91043668,0.00021917,3]
[380446575,1755773451351,-179.768314,0.00021917,2]
[380446577,1755773451360,-356.77016253,0.00021917,2]
[380446579,1755773451371,-151.0,0.00021918,2]
[380446581,1755773451380,-151.0,0.00021918,2]
[380446583,1755773451390,-151.0,0.00021918,2]
[380446585,1755773451400,-151.0,0.00021918,2]
[380446587,1755773451409,-151.0,0.00021918,2]
[380446589,1755773451418,-151.0,0.00021918,2]
[380446591,1755773451429,-151.0,0.00021918,2]
[380446593,1755773451438,-151.0,0.00021918,2]
[380446595,1755773451447,-151.0,0.00021918,2]
[380446597,1755773451456,-151.0,0.00021918,2]
[380446599,1755773451465,-151.0,0.00021918,2]
[380446601,1755773451475,-151.0,0.00021918,2]
[380446603,1755773451485,-196.308632,0.00021918,2]
[380446605,1755773451494,-1069.16132997,0.00021949,2]
[380446607,1755773451504,-183.0,0.00021953,2]
[380446609,1755773451513,-209.24957436,0.00021954,2]
[380446611,1755773451522,-256.47870828,0.00021969,2]
[380446676,1755773452283,-2007.62216336,0.00021969,2]
[380446678,1755773452293,-338.64144431,0.00021973,2]
[380446680,1755773452302,-500.0,0.00021973,2]
[380446682,1755773452311,-500.0,0.00021973,2]
[380446684,1755773452321,-500.86406171,0.00021973,2]
[380446686,1755773452330,-222.15909342,0.00021973,2]
[380446688,1755773452339,-507.73976705,0.00021973,2]
[380446689,1755773452348,-160.3173967,0.00021973,2]
[380446691,1755773452357,-500.0,0.00021973,2]
[380446693,1755773452367,-500.0,0.00021973,2]
[380446695,1755773452376,-504.76771839,0.00021973,2]
[380446697,1755773452385,-500.37754052,0.00021973,2]
[380446699,1755773452395,-500.0,0.00021973,2]
[380446701,1755773452404,-502.93797055,0.00021973,2]
[380446703,1755773452414,-500.0,0.00021973,2]
[380446705,1755773452423,-500.0,0.00021973,2]
[380446707,1755773452432,-500.0,0.00021973,2]
[380446709,1755773452441,-501.17008923,0.00021973,2]
[380446711,1755773452450,-500.64224986,0.00021973,2]
[380446713,1755773452458,-262.31097551,0.00021973,2]
[380446715,1755773452467,-500.0,0.00021973,2]
[380446717,1755773452476,-171.51818524,0.00021973,2]
[380446718,1755773452485,-500.0,0.00021973,2]
[380446720,1755773452494,-500.0,0.00021973,2]
[380446722,1755773452504,-500.0,0.00021973,2]
[380446724,1755773452513,-426.9055883,0.00021973,2]
[380446726,1755773452522,-926.75,0.00022,7]
[380446728,1755773452531,-153.0,0.00022,2]
[380446730,1755773452540,-1601.86670562,0.00022024,2]
[380446732,1755773452549,-168.0,0.00022026,2]
[380446734,1755773452558,-150.232,0.00022037,2]
[380446736,1755773452567,-221.257,0.00022037,2]
[380446738,1755773452577,-250.0,0.00022037,2]
[380446740,1755773452586,-249.1,0.00022037,2]
[380446742,1755773452595,-261.394,0.00022037,2]
[380446744,1755773452604,-219.372,0.00022037,2]
[380446746,1755773452614,-168.0,0.00022047,2]
[380446748,1755773452623,-297.0,0.00022072,2]
[380446750,1755773452632,-3000.0,0.00022088,2]
[380446752,1755773452641,-173.4901843,0.00022091,2]
[380446754,1755773452650,-209.24957436,0.00022091,2]
[380446756,1755773452660,-500.0,0.00022097,2]
[380446758,1755773452669,-297.0,0.00022102,2]
[380446760,1755773452679,-2648.71533242,0.00022108,2]
[380446762,1755773452689,-500.0,0.00022133,2]
[380446764,1755773452699,-1306.0027209,0.0002214,2]
[380446766,1755773452709,-293.9988399,0.0002214,2]
[380446768,1755773452718,-293.9988399,0.0002214,2]
[380446770,1755773452728,-151.0,0.00022147,2]
[380446772,1755773452737,-151.0,0.00022147,2]
[380446773,1755773452747,-151.0,0.00022147,2]
[380446775,1755773452756,-151.0,0.00022147,2]
[380446778,1755773452766,-151.38080728,0.00022147,2]
[380446779,1755773452776,-151.0,0.00022147,2]
[380446781,1755773452785,-151.0,0.00022147,2]
[380446783,1755773452794,-297.0,0.00022156,2]
[380446785,1755773452803,-534.0,0.00022161,2]
[380446787,1755773452812,-501.81847007,0.00022173,2]
[380446789,1755773452821,-501.05417813,0.00022173,2]
[380446791,1755773452831,-500.0,0.00022173,2]
[380446793,1755773452840,-500.0,0.00022173,2]
[380446795,1755773452850,-467.89297228,0.00022173,2]
[380446797,1755773452862,-32.10702772,0.00022173,2]
[380446799,1755773452871,-501.91906315,0.00022173,2]
[380446801,1755773452881,-98.74562813,0.00022173,2]
[380446839,1755773453255,-480.0,0.00021917,3]
[380446841,1755773453264,-86.82120529,0.00022173,2]
[380446843,1755773453273,-500.88783755,0.00022173,2]
[380446845,1755773453282,-258.8936934,0.00022173,2]
[380446847,1755773453292,-500.0,0.00022173,2]
[380446849,1755773453302,-258.76111701,0.00022173,2]
[380446851,1755773453311,-215.58257538,0.00022173,2]
[380446853,1755773453320,-500.0,0.00022173,2]
[380446855,1755773453329,-500.0,0.00022173,2]
[380446857,1755773453338,-500.0,0.00022173,2]
[380446859,1755773453348,-500.0,0.00022173,2]
[380446861,1755773453357,-369.58259376,0.00022173,2]
[380446863,1755773453368,-130.41740624,0.00022173,2]
[380446865,1755773453377,-500.0,0.00022173,2]
[380446867,1755773453386,-500.90420294,0.00022173,2]
[380446869,1755773453396,-500.0,0.00022173,2]
[380446871,1755773453405,-500.0,0.00022173,2]
[380446888,1755773453415,-500.0,0.00022173,2]
[380446890,1755773453566,-501.41601169,0.00022173,2]
[380446892,1755773453575,-154.67568093,0.00022173,2]
[380446894,1755773453585,-500.0,0.00022173,2]
[380446896,1755773453594,-500.0,0.00022173,2]
[380446898,1755773453604,-500.0,0.00022173,2]
[380446900,1755773453613,-500.0,0.00022173,2]
[380446902,1755773453623,-500.0,0.00022173,2]
[380446904,1755773453632,-500.0,0.00022173,2]
[380446906,1755773453642,-500.0,0.00022173,2]
[380446908,1755773453652,-500.0,0.00022173,2]
[380446910,1755773453662,-500.0,0.00022173,2]
[380446912,1755773453671,-500.0,0.00022173,2]
[380446914,1755773453680,-501.18686614,0.00022173,2]
[380446916,1755773453690,-500.0,0.00022173,2]
[380446918,1755773453700,-500.0,0.00022173,2]
[380446920,1755773453710,-500.0,0.00022173,2]
[380446922,1755773453720,-500.0,0.00022173,2]
[380446924,1755773453730,-500.0,0.00022173,2]
[380446926,1755773453739,-501.79923593,0.00022173,2]
[380446928,1755773453749,-500.0,0.00022173,2]
[380446930,1755773453758,-347.30059613,0.00022173,2]
[380446932,1755773453769,-152.69940387,0.00022173,2]
[380446934,1755773453778,-151.0,0.00022174,2]
[380446936,1755773453788,-151.0,0.00022174,2]
[380446938,1755773453797,-200.0,0.0002219,2]
[380446940,1755773453806,-160.44628917,0.0002219,2]
[380446942,1755773453816,-4618.05430696,0.00022191,2]
[380446944,1755773453828,-362.74622389,0.00022191,2]
[380446946,1755773453838,-4302.15071781,0.00022191,2]
[380446948,1755773453850,-657.84928219,0.00022191,2]
[380446951,1755773453862,-972.0,0.00022191,2]
[380446953,1755773453874,-1034.00853371,0.00022191,2]
[380446957,1755773453906,-1254.05944952,0.00022191,2]
[380446959,1755773453917,-3576.59177164,0.00022191,2]
[380446960,1755773453925,-480.0,0.00022191,3]
[380446961,1755773453935,-480.0,0.00022191,3]
[380446962,1755773453944,-480.0,0.00022191,3]
[380446963,1755773453953,-480.0,0.00022191,3]
[380446964,1755773453962,-480.0,0.00022191,3]
[380446965,1755773453971,-480.0,0.00022191,3]
[380446966,1755773453979,-480.0,0.00022191,3]
[380446967,1755773453989,-480.0,0.00022191,3]
[380446968,1755773453997,-480.0,0.00022191,3]
[380446969,1755773454006,-480.0,0.00022191,3]
[380446970,1755773454015,-480.0,0.00022191,3]
[380446971,1755773454024,-480.0,0.00022191,3]
[380446972,1755773454034,-403.05090341,0.00022191,3]
[380446973,1755773454044,-480.0,0.00022191,3]
[380446974,1755773454055,-1600.27,0.00022191,3]
[380446975,1755773454064,-480.0,0.00022191,3]
[380446976,1755773454073,-480.0,0.00022191,3]
[380446977,1755773454082,-480.0,0.00022191,3]
[380446978,1755773454091,-480.0,0.00022191,3]
[380446979,1755773454100,-480.0,0.00022191,3]
[380446980,1755773454110,-480.0,0.00022191,3]
[380446981,1755773454119,-480.0,0.00022191,3]
[380446982,1755773454128,-480.0,0.00022191,3]
[380446983,1755773454137,-480.0,0.00022191,3]
[380446984,1755773454147,-480.0,0.00022191,3]
[380446985,1755773454155,-480.0,0.00022191,3]
[380446986,1755773454165,-480.0,0.00022191,3]
[380446987,1755773454174,-480.0,0.00022191,3]
[380446988,1755773454183,-480.0,0.00022191,3]
[380446989,1755773454192,-480.0,0.00022191,3]
[380446990,1755773454202,-480.0,0.00022191,3]
[380446991,1755773454211,-480.0,0.00022191,3]
[380446992,1755773454220,-480.0,0.00022191,3]
[380446993,1755773454229,-480.0,0.00022191,3]
[380446994,1755773454238,-259.41848703,0.00022191,3]
[380446995,1755773454247,-499.77230919,0.00022191,3]
[380446996,1755773454256,-480.0,0.00022191,3]
[380446997,1755773454265,-604.66673288,0.00022191,3]
[380446998,1755773454275,-480.0,0.00022191,3]
[380446999,1755773454284,-646.28,0.00022191,3]
[380447000,1755773454292,-506.70428187,0.00022191,3]
[380447001,1755773454301,-362.37310778,0.00022191,3]
[380447003,1755773454310,-480.0,0.00022191,3]
[380447004,1755773454319,-480.0,0.00022191,3]
[380447005,1755773454329,-480.0,0.00022191,3]
[380447007,1755773454338,-480.0,0.00022191,3]
[380447009,1755773454348,-480.0,0.00022191,3]
[380447011,1755773454356,-480.0,0.00022191,3]
[380447013,1755773454365,-480.0,0.00022191,3]
[380447015,1755773454375,-480.0,0.00022191,3]
[380447017,1755773454384,-480.0,0.00022191,3]
[380447019,1755773454394,-480.0,0.00022191,3]
[380447021,1755773454404,-602.68699998,0.00022191,3]
[380447023,1755773454414,-480.0,0.00022191,3]
[380447025,1755773454423,-480.0,0.00022191,3]
[380447027,1755773454432,-460.0,0.00022191,3]
[380447029,1755773454442,-462.84141747,0.00022191,3]
[380447031,1755773454453,-1507.38,0.00022191,3]
[380447033,1755773454462,-480.0,0.00022191,3]
[380447035,1755773454471,-360.3461697,0.00022191,3]
[380447037,1755773454481,-482.36071077,0.00022191,3]
[380447039,1755773454490,-480.0,0.00022191,3]
[380447041,1755773454499,-480.0,0.00022191,3]
[380447043,1755773454508,-829.99,0.00022191,3]
[380447045,1755773454517,-480.0,0.00022191,3]
[380447047,1755773454526,-480.0,0.00022191,3]
[380447049,1755773454535,-480.0,0.00022191,3]
[380447051,1755773454544,-480.0,0.00022191,3]
[380447053,1755773454554,-480.0,0.00022191,3]
[380447055,1755773454563,-873.27,0.00022191,3]
[380447057,1755773454572,-480.0,0.00022191,3]
[380447058,1755773454581,-480.0,0.00022191,3]
[380447060,1755773454590,-480.0,0.00022191,3]
[380447062,1755773454599,-481.44794294,0.00022191,3]
[380447064,1755773454609,-480.0,0.00022191,3]
[380447066,1755773454618,-480.0,0.00022191,3]
[380447068,1755773454628,-480.0,0.00022191,3]
[380447070,1755773454637,-480.0,0.00022191,3]
[380447072,1755773454646,-480.0,0.00022191,3]
[380447074,1755773454655,-355.03405794,0.00022191,3]
[380448600,1755773473652,176.36432009,0.00027365,120]
[380449137,1755773612265,-154.68283585,0.000199,2]
[380449138,1755773776506,-444.60727256,0.000199,2]
[380449139,1755773779173,161.791715,0.00013699,2]
[380449140,1755773798880,-163.912698,0.000198,2]
[380449141,1755773800579,-185.67,0.000198,2]
[380449142,1755773803395,-95.02457456,0.000198,2]
[380449143,1755773803417,-70.55773692,0.000199,2]
[380449144,1755773805066,-245.58085564,0.000199,2]
[380449145,1755773805090,-6.9386436,0.000199,2]
[380449146,1755773806651,180.0,0.00027397,120]
[380449147,1755773808566,-143.77500048,0.000199,2]
[380449148,1755773808588,-394.74475952,0.00020822,2]
[380449149,1755773808611,-29.76849603,0.00020835,2]
[380449150,1755773812012,-175.82993515,0.00020835,2]
[380449151,1755773813679,-151.15445482,0.00020835,2]
[380449152,1755773815452,-244.1093505,0.00020835,2]
[380449153,1755773817223,-159.88362839,0.00020835,2]
[380449154,1755773817245,-295.07817937,0.00020932,2]
[380449155,1755773820068,160.0,0.00027397,120]
[380449156,1755773822626,-99.66658015,0.00020932,2]
[380449157,1755773822650,-130.67142312,0.0002099,2]
[380449158,1755773824433,-163.3015328,0.0002099,2]
[380449159,1755773826619,-216.300835,0.0002099,2]
[380449160,1755773829093,-217.71,0.0002099,2]
[380449161,1755773830765,-298.39935397,0.0002099,2]
[380449162,1755773831936,160.0,0.00027358,60]
[380449163,1755773832355,-173.61685511,0.0002099,2]
[380449164,1755773832377,-1.86538446,0.0002099,2]
[380449165,1755773838843,-197.59942239,0.0002099,2]
[380449166,1755773841564,-154.08709537,0.0002099,2]
[380449167,1755773847803,-349.90341106,0.0002099,2]
[380449168,1755773850117,-322.46776043,0.0002099,2]
[380449169,1755773851934,-165.026036,0.000199,2]
[380449170,1755773853540,-316.77192351,0.000199,2]
[380449171,1755773855698,-158.8399593,0.000199,2]
[380449172,1755773857653,193.091219,0.00027397,120]
[380449173,1755773859281,-69.3915553,0.000199,2]
[380449174,1755773859309,-93.5051678,0.00020835,2]
[380449175,1755773860978,-226.49401365,0.00020835,2]
[380449176,1755773864340,-222.73632228,0.00020835,2]
[380449177,1755773867161,-167.29397016,0.00020835,2]
[380449178,1755773867182,-23.25500035,0.0002099,2]